fUSD/lending_fUSD_20260628
["ID","MTS","AMOUNT","RATE_DAILY","PERIOD"]
[426555124,1782589841000,-670.0123153,0.00026351,2]
[426555126,1782589841000,-487.69268235,0.00026351,2]
[426555128,1782589841000,-164.18342414,0.00026351,2]
[426555127,1782589841000,-403.61300991,0.00026351,2]
[426555129,1782589841000,-4562.105612,0.00026444,2]
[426555131,1782589841000,-161.1,0.00026464,7]
[426555142,1782589841000,-4562.105612,0.00027111,2]
[426555146,1782589841000,-500.0,0.00027123,2]
[426555132,1782589841000,-157.18,0.00026464,7]
[426555143,1782589841000,-500.0,0.00027123,2]
[426555141,1782589841000,-370.7567,0.00027011,2]
[426555137,1782589841000,-5000.0,0.00026712,2]
[426555133,1782589841000,-200.0,0.00026593,2]
[426555135,1782589841000,-1000.0,0.00026638,2]
[426555138,1782589841000,-4562.105612,0.00026889,2]
[426555136,1782589841000,-4562.105612,0.00026667,2]
[426555145,1782589841000,-500.0,0.00027123,2]
[426555323,1782589842000,-1036.10970279,0.00030413,2]
[426555327,1782589842000,-158.0,0.00030651,30]
[426555332,1782589842000,-152.0,0.00030651,30]
[426555326,1782589842000,-224.0,0.00030651,30]
[426555320,1782589842000,-168.47917504,0.00030137,2]
[426555329,1782589842000,-302.0,0.00030651,30]
[426555324,1782589842000,-188.0,0.00030651,30]
[426555333,1782589842000,-218.0,0.00030651,30]
[426555318,1782589842000,-12938.0,0.0003008,20]
[426555330,1782589842000,-155.0,0.00030651,30]
[426555328,1782589842000,-301.0,0.00030651,30]
[426555338,1782589842000,-263.0,0.00030655,30]
[426555335,1782589842000,-159.0,0.00030652,30]
[426555315,1782589842000,-1247.885,0.0003,24]
[426555337,1782589842000,-410.0,0.00030652,30]
[426555343,1782589842000,-1230.0,0.00030784,2]
[426555346,1782589842000,-1361.0,0.00030784,2]
[426555344,1782589842000,-1277.0,0.00030784,2]
[426555347,1782589842000,-150.0,0.00030784,2]
[426555342,1782589842000,-170.05,0.00030695,3]
[426555339,1782589842000,-152.0,0.00030655,30]
[426555355,1782589842000,-150.0,0.00030784,2]
[426555348,1782589842000,-150.0,0.00030784,2]
[426555334,1782589842000,-151.0,0.00030652,30]
[426555322,1782589842000,-164.31,0.00030318,2]
[426555310,1782589842000,-500.0,0.00029999,2]
[426555319,1782589842000,-218.64851979,0.00030136,7]
[426555350,1782589842000,-150.0,0.00030784,2]
[426555283,1782589842000,-500.0,0.00029999,2]
[426555284,1782589842000,-500.0,0.00029999,2]
[426555287,1782589842000,-500.0,0.00029999,2]
[426555288,1782589842000,-500.0,0.00029999,2]
[426555290,1782589842000,-500.0,0.00029999,2]
[426555286,1782589842000,-500.0,0.00029999,2]
[426555292,1782589842000,-500.0,0.00029999,2]
[426555302,1782589842000,-500.0,0.00029999,2]
[426555303,1782589842000,-500.0,0.00029999,2]
[426555304,1782589842000,-500.0,0.00029999,2]
[426555316,1782589842000,-151.266,0.0003,24]
[426555306,1782589842000,-500.0,0.00029999,2]
[426555295,1782589842000,-500.0,0.00029999,2]
[426555294,1782589842000,-500.0,0.00029999,2]
[426555300,1782589842000,-500.0,0.00029999,2]
[426555299,1782589842000,-500.0,0.00029999,2]
[426555298,1782589842000,-500.0,0.00029999,2]
[426555296,1782589842000,-500.0,0.00029999,2]
[426555307,1782589842000,-500.0,0.00029999,2]
[426555311,1782589842000,-500.0,0.00029999,2]
[426555312,1782589842000,-550.0,0.00029999,2]
[426555313,1782589842000,-4504.07499314,0.0003,5]
[426555308,1782589842000,-500.0,0.00029999,2]
[426555291,1782589842000,-500.0,0.00029999,2]
[426555352,1782589842000,-150.0,0.00030784,2]
[426555282,1782589842000,-500.0,0.00029999,2]
[426555356,1782589842000,-6085.0,0.00030784,2]
[426555406,1782589842000,-12938.0,0.00032,20]
[426555413,1782589842000,-1386.30631517,0.00032551,2]
[426555410,1782589842000,-2000.0,0.000322,2]
[426555408,1782589842000,-1000.0,0.00032,25]
[426555409,1782589842000,-5527.0,0.000321,5]
[426555407,1782589842000,-1000.0,0.00032,25]
[426555402,1782589842000,-265.82,0.00031713,3]
[426555417,1782589842000,-301.0,0.00032651,30]
[426555414,1782589842000,-188.0,0.00032651,30]
[426555416,1782589842000,-158.0,0.00032651,30]
[426555425,1782589842000,-263.0,0.00032655,30]
[426555411,1782589842000,-11576.41,0.00032232,7]
[426555423,1782589842000,-159.0,0.00032652,30]
[426555415,1782589842000,-224.0,0.00032651,30]
[426555422,1782589842000,-151.0,0.00032652,30]
[426555418,1782589842000,-302.0,0.00032651,30]
[426555421,1782589842000,-218.0,0.00032651,30]
[426555426,1782589842000,-152.0,0.00032655,30]
[426555419,1782589842000,-155.0,0.00032651,30]
[426555424,1782589842000,-410.0,0.00032652,30]
[426555428,1782589842000,-256.62,0.00032724,3]
[426555429,1782589842000,-2000.0,0.000329,7]
[426555431,1782589842000,-1386.30631511,0.00032944,2]
[426555430,1782589842000,-636.56310323,0.00032938,7]
[426555420,1782589842000,-152.0,0.00032651,30]
[426555405,1782589842000,-200.0,0.00031944,2]
[426555427,1782589842000,-1036.10970279,0.00032657,2]
[426555401,1782589842000,-578.6649,0.00031687,28]
[426555412,1782589842000,-152.0,0.00032278,3]
[426555359,1782589842000,-1000.0,0.00031,7]
[426555360,1782589842000,-1005.0,0.00031,20]
[426555365,1782589842000,-1000.0,0.000311,2]
[426555358,1782589842000,-213.323,0.00030883,7]
[426555368,1782589842000,-316.0,0.000311,2]
[426555376,1782589842000,-150.0,0.00031488,30]
[426555371,1782589842000,-1036.10970279,0.00031161,2]
[426555375,1782589842000,-188.86,0.00031193,2]
[426555381,1782589842000,-188.0,0.00031651,30]
[426555383,1782589842000,-224.0,0.00031651,30]
[426555387,1782589842000,-302.0,0.00031651,30]
[426555362,1782589842000,-12938.0,0.0003104,20]
[426555397,1782589842000,-152.0,0.00031655,30]
[426555403,1782589842000,-1036.10970279,0.00031909,2]
[426555393,1782589842000,-159.0,0.00031652,30]
[426555398,1782589842000,-285.8961174,0.00031687,28]
[426555392,1782589842000,-151.0,0.00031652,30]
[426555384,1782589842000,-158.0,0.00031651,30]
[426555390,1782589842000,-218.0,0.00031651,30]
[426555389,1782589842000,-152.0,0.00031651,30]
[426555385,1782589842000,-301.0,0.00031651,30]
[426555394,1782589842000,-410.0,0.00031652,30]
[426555396,1782589842000,-263.0,0.00031655,30]
[426555399,1782589842000,-427.6834933,0.00031687,28]
[426555388,1782589842000,-155.0,0.00031651,30]
[426555437,1782589843000,-13785.665649,0.00033242,2]
[426555439,1782589843000,-4735.4698441,0.00033242,2]
[426555440,1782589843000,-171221.30590726,0.00033242,2]
[426555433,1782589843000,-1000.0,0.00033,30]
[426555435,1782589843000,-1201.41500543,0.0003307,7]
[426555432,1782589843000,-12938.0,0.0003296,20]
[426555446,1782589843000,-5768.99522768,0.00033242,2]
[426555447,1782589843000,-150.0,0.00030784,2]
[426555441,1782589843000,-618.77592,0.00033242,2]
[426555443,1782589843000,-4861.45481257,0.00033242,2]
[426555449,1782589843000,-8436.89982943,0.00033242,2]
[426555444,1782589843000,-612.47594036,0.00033242,2]
[426555436,1782589843000,-958.89915844,0.00033216,2]
[426555495,1782589844000,-661.83041504,0.000332,7]
[426555553,1782589845000,-163.91,0.00024658,2]
[426555554,1782589845000,-163.91,0.00026464,7]
[426555556,1782589845000,-177.18,0.000332,7]
[426555584,1782589846000,-63.962,0.00032642,10]
[426555582,1782589846000,-195.834,0.00027784,2]
[426555581,1782589846000,-935.0,0.00027784,2]
[426555563,1782589846000,-1931.87041504,0.00033242,2]
[426555562,1782589846000,-1160.98958496,0.000332,7]
[426556282,1782589866000,300.0,0.00029284,120]
[426556278,1782589866000,300.0,0.00030563,120]
[426556306,1782589867000,600.0,0.00030563,120]
[426556315,1782589867000,600.0,0.00031238,120]
[426556311,1782589867000,600.0,0.00029284,120]
[426556677,1782589878000,274.0,0.00037304,120]
[426556750,1782589880000,5255.3913,0.000239,120]
[426558314,1782590178000,500.0,0.00031039,120]
[426558316,1782590189000,280.76,0.0002647,120]
[426558317,1782590199000,500.0,0.00031039,120]
[426558319,1782590215000,37974.0,0.00037304,120]
[426558323,1782590247000,4447.98488988,0.00037304,120]
[426558322,1782590247000,-308.56097904,0.000149,2]
[426558328,1782590255000,846.98621297,3e-05,10]
[426558329,1782590257000,24388.86765126,0.00037304,120]
[426558330,1782590264000,3655.28416014,0.00037304,120]
[426558332,1782590300000,-592.97686568,0.000149,2]
[426558333,1782590301000,768.78,0.00037304,120]
[426558334,1782590301000,768.78,0.00037304,120]
[426558335,1782590301000,768.78,0.00037304,120]
[426558336,1782590301000,768.78,0.00037304,120]
[426558337,1782590301000,768.78,0.00037304,120]
[426558338,1782590301000,768.78,0.00037304,120]
[426558339,1782590301000,965.33,0.00037304,120]
[426558341,1782590301000,965.33,0.00037304,120]
[426558347,1782590301000,965.33,0.00037304,120]
[426558346,1782590301000,768.78,0.00037304,120]
[426558345,1782590301000,965.33,0.00037304,120]
[426558340,1782590301000,768.78,0.00037304,120]
[426558343,1782590301000,965.33,0.00037304,120]
[426558342,1782590301000,768.78,0.00037304,120]
[426558344,1782590301000,768.78,0.00037304,120]
[426558348,1782590302000,768.78,0.00037304,120]
[426558349,1782590302000,965.33,0.00037304,120]
[426558350,1782590302000,768.78,0.00037304,120]
[426558351,1782590302000,965.33,0.00037304,120]
[426558352,1782590302000,768.78,0.00037304,120]
[426558353,1782590302000,965.33,0.00037304,120]
[426558354,1782590302000,768.78,0.00037304,120]
[426558355,1782590302000,965.33,0.00037304,120]
[426558356,1782590302000,768.78,0.00037304,120]
[426558357,1782590302000,965.33,0.00037304,120]
[426558358,1782590302000,768.78,0.00037304,120]
[426558359,1782590302000,965.33,0.00037304,120]
[426558360,1782590302000,768.78,0.00037304,120]
[426558362,1782590303000,768.78,0.00037304,120]
[426558363,1782590303000,965.33,0.00037304,120]
[426558361,1782590303000,965.33,0.00037304,120]
[426558365,1782590303000,965.33,0.00037304,120]
[426558364,1782590303000,768.78,0.00037304,120]
[426558366,1782590303000,768.78,0.00037304,120]
[426558367,1782590314000,965.33,0.00037304,120]
[426558368,1782590314000,768.78,0.00037304,120]
[426558369,1782590314000,965.33,0.00037304,120]
[426558373,1782590314000,-476.41209765,0.000149,2]
[426558371,1782590314000,965.33,0.00037304,120]
[426558372,1782590314000,768.78,0.00037304,120]
[426558374,1782590314000,965.33,0.00037304,120]
[426558370,1782590314000,965.33,0.00037304,120]
[426558376,1782590315000,965.33,0.00037304,120]
[426558377,1782590315000,768.86,0.00037304,120]
[426558375,1782590315000,768.78,0.00037304,120]
[426558379,1782590315000,965.33,0.00037304,120]
[426558380,1782590315000,965.33,0.00037304,120]
[426558381,1782590315000,965.36,0.00037304,120]
[426558378,1782590315000,965.33,0.00037304,120]
[426558384,1782590319000,1076.04,0.00037304,120]
[426558383,1782590319000,1076.04,0.00037304,120]
[426558382,1782590319000,1076.04,0.00037304,120]
[426558386,1782590320000,1076.04,0.00037304,120]
[426558385,1782590320000,1076.04,0.00037304,120]
[426558389,1782590321000,1076.04,0.00037304,120]
[426558388,1782590321000,1076.04,0.00037304,120]
[426558387,1782590321000,1076.04,0.00037304,120]
[426558390,1782590322000,1076.04,0.00037304,120]
[426558391,1782590322000,1076.04,0.00037304,120]
[426558392,1782590322000,1076.04,0.00037304,120]
[426558393,1782590323000,1076.04,0.00037304,120]
[426558396,1782590323000,1076.04,0.00037304,120]
[426558395,1782590323000,1076.04,0.00037304,120]
[426558394,1782590323000,1076.04,0.00037304,120]
[426558400,1782590324000,1076.04,0.00037304,120]
[426558398,1782590324000,1076.04,0.00037304,120]
[426558397,1782590324000,1076.04,0.00037304,120]
[426558403,1782590325000,1076.04,0.00037304,120]
[426558401,1782590325000,1076.04,0.00037304,120]
[426558402,1782590325000,1076.04,0.00037304,120]
[426558406,1782590326000,1076.18911238,0.00037304,120]
[426558405,1782590326000,1076.04,0.00037304,120]
[426558404,1782590326000,1076.04,0.00037304,120]
[426558409,1782590366000,-500.0,0.00014999,2]
[426558410,1782590371000,2500.0,0.00031507,120]
[426558411,1782590419000,-1016.59904435,0.00014947,2]
[426558412,1782590431000,2500.0,0.00031507,120]
[426558413,1782590472000,-935.71534287,0.000149,2]
[426558414,1782590490000,2500.0,0.00031507,120]
[426558415,1782590526000,-310.8329109,0.000149,2]
[426558416,1782590579000,-216.51184279,0.00014979,2]
[426558417,1782590602000,670.31337361,0.0003,120]
[426558420,1782590632000,-500.0,0.00014999,2]
[426558430,1782590686000,-500.0,0.00014999,2]
[426558431,1782590686000,-447.64572719,0.00014999,2]
[426558429,1782590686000,-500.0,0.00014999,2]
[426558428,1782590686000,-500.0,0.00014999,2]
[426558426,1782590686000,-500.0,0.00014999,2]
[426558425,1782590686000,-500.0,0.00014999,2]
[426558424,1782590686000,-500.0,0.00014999,2]
[426558423,1782590686000,-500.0,0.00014999,2]
[426558432,1782590686000,-500.0,0.00014999,2]
[426558422,1782590686000,-818.75092502,0.000149,2]
[426558427,1782590686000,-500.0,0.00014999,2]
[426558435,1782590686000,-500.0,0.00014999,2]
[426558445,1782590686000,-1325.23,0.00014999,2]
[426558433,1782590686000,-500.0,0.00014999,2]
[426558436,1782590686000,-500.0,0.00014999,2]
[426558438,1782590686000,-500.0,0.00014999,2]
[426558437,1782590686000,-500.0,0.00014999,2]
[426558439,1782590686000,-500.0,0.00014999,2]
[426558441,1782590686000,-500.0,0.00014999,2]
[426558440,1782590686000,-500.0,0.00014999,2]
[426558442,1782590686000,-500.0,0.00014999,2]
[426558443,1782590686000,-316.84311229,0.00014999,2]
[426558444,1782590686000,-571.7901786,0.00014999,2]
[426558446,1782590686000,-500.0,0.00014999,2]
[426558434,1782590686000,-500.0,0.00014999,2]
[426558447,1782590687000,-225.73029257,0.00014999,2]
[426558449,1782590687000,-11612.76068935,0.00015,2]
[426558448,1782590687000,-500.0,0.00014999,2]
[426558452,1782590694000,-6969.1774,0.00015,2]
[426558451,1782590694000,-18030.8226,0.000149,2]
[426558453,1782590695000,-216.51184279,0.00014999,2]
[426558454,1782590695000,-24783.48815721,0.00015,2]
[426558455,1782590696000,-25000.0,0.00015,2]
[426558456,1782590697000,-25000.0,0.00015,2]
[426558457,1782590698000,-25000.0,0.00015,2]
[426558467,1782590715000,109560.21,0.00037272,120]
[426558472,1782590757000,-24500.0,0.00015,2]
[426558471,1782590757000,-500.0,0.00014999,2]
[426558473,1782590758000,-25000.0,0.00015,2]
[426558475,1782590759000,-25000.0,0.00015,2]
[426558477,1782590760000,-25000.0,0.00015,2]
[426558476,1782590760000,-25000.0,0.00015,2]
[426558478,1782590761000,-25000.0,0.00015,2]
[426558480,1782590848000,198.949999,0.0003,120]
[426558489,1782590946000,-1405.6736,0.000149,2]
[426558483,1782590946000,-2901.6711708,0.000142,2]
[426558482,1782590946000,-1562.43832274,0.00014193,2]
[426558484,1782590946000,-216.51184279,0.00014209,2]
[426558485,1782590946000,-500.0,0.000148,2]
[426558486,1782590946000,-302.6799,0.00014899,2]
[426558487,1782590946000,-150.0,0.00014899,2]
[426558488,1782590946000,-176.23452864,0.000149,7]
[426558490,1782590946000,-24889.8739,0.000149,2]
[426558491,1782590946000,-217.68536207,0.00014925,2]
[426558492,1782590946000,-200.0,0.00014967,2]
[426558493,1782590946000,-200.0,0.00014967,2]
[426558494,1782590946000,-200.0,0.00014967,2]
[426558496,1782590946000,-200.0,0.00014967,7]
[426558495,1782590946000,-200.0,0.00014967,2]
[426558497,1782590946000,-200.0,0.00014967,7]
[426558499,1782590946000,-5395.5990634,0.00014993,2]
[426558498,1782590946000,-200.0,0.00014967,7]
[426558500,1782590946000,-1355.15798956,0.00014993,2]
[426558501,1782590983000,50000.0,0.00037272,120]
[426558506,1782591031000,-250.0,0.00014,2]
[426558505,1782591031000,-243.69,0.000137,2]
[426558508,1782591031000,-6159.93030402,0.00014993,2]
[426558511,1782591031000,-352.2726,0.00014993,2]
[426558507,1782591031000,-1063.94357986,0.00014993,2]
[426558509,1782591031000,-342.86699056,0.00014993,2]
[426558512,1782591031000,-1781.57204972,0.00014993,2]
[426558513,1782591031000,-1472.49618021,0.00014993,2]
[426558510,1782591031000,-407.0,0.00014993,2]
[426558525,1782591038000,-592.97686568,0.00014993,2]
[426558526,1782591038000,-13217.50446163,0.00014993,2]
[426558528,1782591038000,-14248.93356175,0.00014993,2]
[426558527,1782591038000,-3314.68113936,0.00014993,2]
[426558532,1782591038000,-699.26315388,0.00014999,2]
[426558529,1782591038000,-272.26637365,0.00014993,2]
[426558534,1782591038000,-500.0,0.00014999,2]
[426558531,1782591038000,-150.0,0.00014996,2]
[426558536,1782591038000,-1366.39399161,0.00015,2]
[426558530,1782591038000,-176.73827689,0.00014993,7]
[426558533,1782591038000,-500.0,0.00014999,2]
[426558535,1782591038000,-500.0,0.00014999,2]
[426558762,1782591040000,-738.00234957,0.00015,2]
[426558745,1782591040000,-1161.66341644,0.00015,2]
[426558747,1782591040000,-316.36895394,0.00015,2]
[426558754,1782591040000,-3857.15505304,0.00015,2]
[426558711,1782591040000,-7367.48667208,0.00015,2]
[426559050,1782591042000,-817.24489353,0.00015,2]
[426559064,1782591042000,-7587.77211594,0.00015,2]
[426559166,1782591043000,-1142.658678,0.00015,2]
[426559209,1782591054000,-7925.68055393,0.00015,2]
[426559207,1782591054000,-151.0,0.00015,2]
[426559205,1782591054000,-151.0,0.00015,2]
[426559203,1782591054000,-150.0,0.00015,2]
[426559206,1782591054000,-150.0,0.00015,2]
[426559204,1782591054000,-151.0,0.00015,2]
[426559202,1782591054000,-166.99055726,0.00015,2]
[426559208,1782591054000,-4412.37561007,0.00015,2]
[426559210,1782591107000,-1194.8729,0.000149,2]
[426559211,1782591161000,-290.16711708,0.000142,2]
[426559212,1782591214000,-156.24383227,0.000142,2]
[426559213,1782591243000,2348.77,0.00037271,120]
[426559214,1782591267000,-7706.09945877,0.00014934,2]
[426559215,1782591280000,-22086.7740103,0.00014933,2]
[426559218,1782591292000,-22086.7740103,0.00014933,2]
[426559219,1782591304000,-5428.19788395,0.00014933,2]
[426559220,1782591316000,-5428.19788395,0.00014933,2]
[426559221,1782591328000,-150.0,0.00014485,2]
[426559222,1782591475000,171.82,0.00012421,2]
[426559226,1782591636000,447.91,0.00031353,120]
[426559225,1782591636000,447.91,0.00031107,120]
[426559227,1782591690000,-156.24383227,0.00014133,2]
[426559228,1782591743000,-150.0,0.00014136,2]
[426559229,1782591797000,-166.66,0.00013465,2]
[426559230,1782591850000,-150.0,0.00013061,2]
[426559231,1782591903000,-308.56097904,0.00013648,2]
[426559234,1782591935000,-501.93418631,0.00013829,2]
[426559232,1782591935000,-150.0,0.00013698,2]
[426559233,1782591935000,-166.66,0.00013748,2]
[426559235,1782591957000,-216.51184279,0.00013829,2]
[426559236,1782591969000,-839.6339709,0.00013829,2]
[426559245,1782592146000,-1934.39813472,0.00014225,2]
[426559243,1782592146000,-290.16711708,0.00014138,2]
[426559240,1782592146000,-200.0,0.00013913,2]
[426559244,1782592146000,-187.02,0.00014197,2]
[426559241,1782592146000,-166.66,0.00014032,2]
[426559239,1782592146000,-200.0,0.0001385,2]
[426559238,1782592146000,-210.09,0.00013837,2]
[426559242,1782592146000,-176.88104888,0.00014126,2]
[426559246,1782592146000,-2036.38186528,0.00014225,2]
[426559254,1782592146000,-176.88104887,0.00014782,2]
[426559250,1782592146000,-1852.42,0.00014355,2]
[426559249,1782592146000,-5228.89,0.00014352,2]
[426559248,1782592146000,-166.66,0.00014315,2]
[426559251,1782592146000,-600.0,0.00014367,2]
[426559253,1782592146000,-166.66,0.00014598,2]
[426559252,1782592146000,-2575.81,0.00014574,2]
[426559255,1782592146000,-150.0,0.00014832,2]
[426559256,1782592146000,-27158.61670585,0.00014833,2]
[426559247,1782592146000,-572.84,0.00014226,2]
[426559257,1782592150000,-75397.58478,0.00014833,2]
[426559268,1782592151000,-519.84808072,0.00014932,2]
[426559266,1782592151000,-324.41682396,0.00014932,2]
[426559264,1782592151000,-169.8925337,0.00014908,2]
[426559265,1782592151000,-169.8925337,0.00014908,2]
[426559263,1782592151000,-169.8925337,0.00014908,2]
[426559258,1782592151000,-7557.57231415,0.00014833,2]
[426559261,1782592151000,-166.66,0.00014882,2]
[426559260,1782592151000,-1503.65085824,0.00014838,2]
[426559259,1782592151000,-724.98881649,0.00014834,2]
[426559269,1782592151000,-500.0,0.00014932,2]
[426559262,1782592151000,-2236.00160818,0.000149,2]
[426559270,1782592151000,-500.0,0.00014932,2]
[426559267,1782592151000,-500.0,0.00014932,2]
[426559272,1782592151000,-500.0,0.00014932,2]
[426559271,1782592151000,-500.0,0.00014932,2]
[426559283,1782592151000,-4849.9681804,0.00014938,2]
[426559284,1782592151000,-82399.51542573,0.00014938,2]
[426559280,1782592151000,-17351.3041661,0.00014938,2]
[426559279,1782592151000,-99529.996421,0.00014938,2]
[426559278,1782592151000,-1292.3913056,0.00014936,2]
[426559281,1782592151000,-22289.7751735,0.00014938,2]
[426559277,1782592151000,-260.08147743,0.00014934,2]
[426559275,1782592151000,-500.0,0.00014932,2]
[426559273,1782592151000,-500.0,0.00014932,2]
[426559274,1782592151000,-500.0,0.00014932,2]
[426559276,1782592151000,-37036.9104815,0.00014933,2]
[426559282,1782592151000,-592.9768659,0.00014938,2]
[426559285,1782592158000,-9073.409968,0.00014938,2]
[426559294,1782592163000,-500.0,0.00014985,2]
[426559300,1782592163000,-500.0,0.00014985,2]
[426559298,1782592163000,-500.0,0.00014985,2]
[426559297,1782592163000,-500.0,0.00014985,2]
[426559295,1782592163000,-500.0,0.00014985,2]
[426559296,1782592163000,-500.0,0.00014985,2]
[426559287,1782592163000,-500.0,0.00014985,2]
[426559292,1782592163000,-500.0,0.00014985,2]
[426559289,1782592163000,-500.0,0.00014985,2]
[426559290,1782592163000,-500.0,0.00014985,2]
[426559291,1782592163000,-500.0,0.00014985,2]
[426559288,1782592163000,-500.0,0.00014985,2]
[426559286,1782592163000,-57468.73052247,0.00014938,2]
[426559299,1782592163000,-500.0,0.00014985,2]
[426559293,1782592163000,-500.0,0.00014985,2]
[426559301,1782592163000,-500.0,0.00014985,2]
[426559311,1782592163000,-277.11033947,0.00014999,2]
[426559303,1782592163000,-500.0,0.00014985,2]
[426559319,1782592163000,-33393.42736373,0.00015,2]
[426559316,1782592163000,-500.0,0.00014999,2]
[426559315,1782592163000,-500.0,0.00014999,2]
[426559318,1782592163000,-564.55101643,0.00014999,2]
[426559317,1782592163000,-500.0,0.00014999,2]
[426559314,1782592163000,-195.66623103,0.00014999,2]
[426559312,1782592163000,-281.00282783,0.00014999,2]
[426559313,1782592163000,-500.0,0.00014999,2]
[426559308,1782592163000,-334.52363922,0.00014985,2]
[426559309,1782592163000,-500.0,0.00014989,2]
[426559307,1782592163000,-500.0,0.00014985,2]
[426559306,1782592163000,-500.0,0.00014985,2]
[426559305,1782592163000,-133.32334247,0.00014985,2]
[426559304,1782592163000,-366.67665753,0.00014985,2]
[426559310,1782592163000,-500.0,0.00014999,2]
[426559302,1782592163000,-500.0,0.00014985,2]
[426559320,1782592169000,6248.48637325,0.00037273,120]
[426559321,1782592169000,-1633.97568849,0.00015,2]
[426559322,1782592192000,49509.02,0.00037273,120]
[426559324,1782592231000,-393.653476,0.00014733,2]
[426559325,1782592232000,-801.219424,0.00014733,2]
[426559337,1782592232000,-187.55,0.00015838,2]
[426559335,1782592232000,-160.0,0.0001551,2]
[426559330,1782592232000,-250.0,0.00015068,2]
[426559333,1782592232000,-151.0,0.00015215,2]
[426559336,1782592232000,-176.23452864,0.00015645,7]
[426559332,1782592232000,-176.23452864,0.00015198,7]
[426559331,1782592232000,-300.0,0.00015123,2]
[426559338,1782592232000,-300.0,0.00016,2]
[426559328,1782592232000,-14505.26929206,0.00015,2]
[426559339,1782592232000,-1056.04,0.00016006,2]
[426559329,1782592232000,-175.20385542,0.00015,2]
[426559327,1782592232000,-173.61365572,0.00014969,2]
[426559326,1782592232000,-160.0,0.00014938,2]
[426559334,1782592232000,-151.0,0.00015215,2]
[426559340,1782592232000,-176.23452864,0.00016092,7]
[426559341,1782592232000,-168.48,0.00016339,2]
[426559342,1782592232000,-167.4,0.00016616,2]
[426559343,1782592232000,-176.23452868,0.00016688,7]
[426559357,1782592232000,-25180.75960159,0.00018,2]
[426559358,1782592232000,-15219.97846743,0.00018,2]
[426559356,1782592232000,-500.0,0.00017999,2]
[426559355,1782592232000,-288.58,0.00017987,2]
[426559354,1782592232000,-4938.169,0.000179,2]
[426559353,1782592232000,-1503.65085823,0.00017704,2]
[426559351,1782592232000,-4938.169,0.000176,2]
[426559359,1782592232000,-1670.58221142,0.00018,2]
[426559350,1782592232000,-570.99,0.00017424,2]
[426559349,1782592232000,-4938.169,0.000174,2]
[426559347,1782592232000,-2236.00160813,0.00017122,2]
[426559346,1782592232000,-724.98881643,0.00017064,2]
[426559344,1782592232000,-500.0,0.00016829,2]
[426559348,1782592232000,-4938.169,0.000172,2]
[426559345,1782592232000,-40343.09,0.0001683,2]
[426559352,1782592232000,-4938.169,0.000177,2]
[426559384,1782592238000,-4938.169,0.000186,2]
[426559387,1782592238000,-8740.19393709,0.0001872,2]
[426559380,1782592238000,-244.14000536,0.000184,2]
[426559385,1782592238000,-244.14000536,0.000187,2]
[426559382,1782592238000,-244.14000536,0.000185,2]
[426559381,1782592238000,-4938.169,0.000185,2]
[426559378,1782592238000,-244.14000536,0.000182,2]